bitfinex-derivatives/quotes_SOLF0:USTF0_20251023
["timestamp","ask_amount","ask_price","bid_price","bid_amount"]
[1761204877700,2.8,187.85,187.84,4.84966021]
[1761204880707,2.8,187.84,187.77,2.66]
[1761204880894,2.8,187.84,187.71,66.7932]
[1761204880895,16.0,187.84,187.78,4.85262417]
[1761204881094,2.8,187.82,187.79,4.85262417]
[1761204881300,47.86,187.81,187.8,4.85262417]
[1761204881897,2.8,187.8,187.73,2.66]
[1761204882105,2.8,187.8,187.74,4.85344981]
[1761204882295,2.8,187.79,187.75,4.85344981]
[1761204882499,2.8,187.79,187.76,4.85344981]
[1761204882699,2.8,187.79,187.77,4.85344981]
[1761204882899,2.8,187.79,187.78,4.85344981]
[1761204883301,2.8,187.79,187.73,2.66]
[1761204883502,2.8,187.79,187.74,4.85099884]
[1761204883702,2.8,187.79,187.75,4.85099884]
[1761204883909,2.8,187.79,187.76,4.85099884]
[1761204884112,2.8,187.79,187.73,2.66]
[1761204884316,2.8,187.79,187.74,4.84967381]
[1761204884502,2.8,187.79,187.75,4.84967381]
[1761204884702,2.8,187.79,187.76,4.84967381]
[1761204884905,2.8,187.79,187.73,2.66]
[1761204885106,2.8,187.79,187.74,4.84967654]
[1761204885307,2.8,187.79,187.75,4.84967654]
[1761204885503,2.8,187.79,187.76,4.84967654]
[1761204885812,2.8,187.79,187.72,2.66]
[1761204886005,2.8,187.79,187.73,4.84827668]
[1761204886206,2.8,187.79,187.74,4.84827668]
[1761204886509,2.8,187.79,187.75,4.84827668]
[1761204886705,2.8,187.77,187.72,2.66]
[1761204886911,47.82,187.76,187.73,4.84614373]
[1761204887111,47.82,187.76,187.74,4.84614373]
[1761204887411,47.82,187.76,187.72,2.66]
[1761204887611,47.82,187.76,187.73,4.84512626]
[1761204887810,47.82,187.76,187.74,4.84512626]
[1761204888113,2.8,187.77,187.67,2.66]
[1761204888303,2.8,187.75,187.68,4.84424852]
[1761204888504,47.82,187.74,187.69,7.50424852]
[1761204888805,47.82,187.74,187.7,4.84424852]
[1761204889013,47.82,187.74,187.71,4.84424852]
[1761204889208,2.8,187.73,187.72,4.84424852]
[1761204890114,4.76490258,187.73,187.72,4.84424852]
[1761204891310,4.76490258,187.73,187.65,2.66]
[1761204891513,4.76490258,187.73,187.66,4.83890519]
[1761204891706,45.0,187.72,187.68,2.66]
[1761204892014,45.0,187.71,187.7,2.66]
[1761204892211,45.0,187.71,187.7,7.49890519]
[1761204895406,4.76490258,187.75,187.7,4.83890519]
[1761204895718,2.8,187.73,187.71,4.83890519]
[1761204896016,2.8,187.73,187.67,2.66]
[1761204896216,2.8,187.73,187.68,7.49378212]
[1761204896413,2.8,187.73,187.69,4.83378212]
[1761204896614,2.8,187.73,187.7,4.83378212]
[1761204896913,31.62,187.74,187.64,2.66]
[1761204896914,2.8,187.71,187.64,2.66]
[1761204897116,2.8,187.71,187.65,4.8350143]
[1761204897316,2.8,187.71,187.66,4.8350143]
[1761204897510,2.8,187.71,187.67,4.8350143]
[1761204897706,2.8,187.71,187.68,4.8350143]
[1761204897918,2.8,187.71,187.64,2.66]
[1761204898118,2.8,187.71,187.65,4.8347898]
[1761204898316,2.8,187.71,187.66,7.4947898]
[1761204898521,2.8,187.71,187.67,4.8347898]
[1761204898717,44.96,187.7,187.62,2.66]
[1761204899014,44.96,187.7,187.63,4.83342918]
[1761204899212,44.96,187.7,187.64,7.63342918]
[1761204899415,47.86,187.7,187.65,7.63342918]
[1761204899611,2.9,187.69,187.66,4.83342918]
[1761204899921,2.9,187.69,187.67,4.83342918]
[1761204900215,2.9,187.69,187.68,4.83342918]
[1761204900822,44.98,187.69,187.68,4.83342918]
[1761204901220,2.9,187.71,187.68,4.83342918]
[1761204901522,44.98,187.7,187.69,4.83080277]
[1761204901715,37.6,187.7,187.69,4.83080277]
[1761204901917,2.9,187.76,187.7,2.8]
[1761204902117,2.9,187.74,187.7,2.8]
[1761204903521,2.9,187.74,187.67,2.8]
[1761204903713,4.86490258,187.74,187.68,4.83023647]
[1761204904023,44.98,187.73,187.67,2.8]
[1761204904217,2.9,187.72,187.68,4.83047309]
[1761204904416,2.9,187.72,187.65,2.8]
[1761204904625,2.9,187.72,187.66,4.83000337]
[1761204904813,2.9,187.72,187.67,7.63000337]
[1761204905011,2.9,187.72,187.68,4.83000337]
[1761204905212,2.9,187.7,187.61,2.8]
[1761204905526,2.9,187.7,187.63,2.8]
[1761204905723,2.9,187.7,187.64,4.82810161]
[1761204905925,2.9,187.7,187.65,7.62810161]
[1761204906114,2.9,187.7,187.66,4.82810161]
[1761204906317,2.9,187.7,187.65,2.8]
[1761204906515,2.9,187.7,187.66,4.8278376]
[1761204906718,2.9,187.7,187.65,2.8]
[1761204906921,2.9,187.7,187.58,66.91126077]
[1761204906922,2.9,187.7,187.66,7.62641946]
[1761204907125,2.9,187.7,187.67,4.82641946]
[1761204907421,2.9,187.7,187.66,2.8]
[1761204907623,1.96490258,187.72,187.67,4.82623137]
[1761204907828,2.9,187.71,187.67,2.8]
[1761204909026,47.88,187.7,187.6,2.8]
[1761204909223,47.88,187.7,187.62,2.8]
[1761204909422,1.96490258,187.72,187.64,2.8]
[1761204909629,1.96490258,187.72,187.66,2.8]
[1761204909630,24.8,187.71,187.66,2.8]
[1761204909827,24.8,187.71,187.68,2.8]
[1761204910929,1.96490258,187.72,187.68,2.8]
[1761204911127,49.84490258,187.72,187.68,2.8]
[1761204911522,1.96490258,187.75,187.7,2.8]
[1761204911830,2.9,187.74,187.63,2.8]
[1761204912031,2.9,187.74,187.62,4.7955]
[1761204912032,2.9,187.74,187.65,2.8]
[1761204912232,2.9,187.74,187.66,7.6282048]
[1761204912528,2.9,187.74,187.67,4.8282048]
[1761204912726,2.9,187.74,187.68,4.8282048]
[1761204913031,2.9,187.74,187.66,2.8]
[1761204913331,1.96490258,187.73,187.67,7.63018446]
[1761204913524,1.96490258,187.73,187.68,4.83018446]
[1761204913725,4.86490258,187.73,187.69,4.83018446]
[1761204913924,49.84490258,187.73,187.67,2.8]
[1761204914227,49.84490258,187.73,187.69,2.8]
[1761204914430,49.84490258,187.73,187.7,7.62998463]
[1761204914633,49.84490258,187.73,187.7,2.8]
[1761204914825,49.84490258,187.73,187.63,2.8]
[1761204915025,49.84490258,187.73,187.65,2.8]
[1761204915221,49.84490258,187.73,187.67,2.8]
[1761204915434,49.84490258,187.73,187.68,7.63028766]
[1761204915728,49.84490258,187.73,187.69,7.63028766]
[1761204915928,49.84490258,187.73,187.7,4.83028766]
[1761204916129,49.84490258,187.73,187.69,2.8]
[1761204916323,2.9,187.72,187.7,4.83569493]
[1761204916518,2.9,187.72,187.65,2.8]
[1761204916723,46.94490258,187.73,187.67,2.8]
[1761204916923,2.9,187.72,187.68,7.63679443]
[1761204917125,1.96490258,187.73,187.7,2.8]
[1761204917322,44.98,187.72,187.71,4.83703058]
[1761204919926,2.9,187.75,187.71,4.83703058]
[1761204920128,1.96490258,187.76,187.7,2.8]
[1761204920129,44.98,187.74,187.72,4.8402853]
[1761204920331,47.88,187.74,187.7,2.8]
[1761204920531,2.9,187.73,187.71,4.84013551]
[1761204920828,2.9,187.73,187.72,4.84013551]
[1761204921930,2.9,187.75,187.72,4.84013551]
[1761204922232,47.86,187.74,187.7,2.8]
[1761204922425,2.9,187.73,187.71,4.84477527]
[1761204922629,2.9,187.73,187.72,4.84477527]
[1761204925833,47.86,187.73,187.72,4.84477527]
[1761204926726,49.11877631,187.73,187.72,4.84477527]
[1761204928735,4.15877631,187.73,187.72,4.84477527]
[1761204929035,49.11877631,187.73,187.72,4.84477527]
[1761204934939,2.8,187.72,187.66,2.8]
[1761204935134,1.25877631,187.69,187.66,2.8]
[1761204935335,46.21877631,187.69,187.66,2.8]
[1761204936840,49.01877631,187.69,187.66,2.8]
[1761204937640,1.25877631,187.67,187.64,2.85]
[1761204937842,1.25877631,187.65,187.62,4.90499464]
[1761204938044,1.25877631,187.63,187.62,2.85]
[1761204938446,2.8,187.62,187.59,7.75499464]
[1761204938647,2.8,187.62,187.54,14.76221042]
[1761204938648,1.25877631,187.61,187.58,4.90499464]
[1761204938843,46.21877631,187.61,187.58,4.90499464]
[1761204939046,46.21877631,187.61,187.59,2.85]
[1761204939447,49.01877631,187.61,187.57,7.75499464]
[1761204939746,1.25877631,187.59,187.58,2.85]
[1761204940951,1.25877631,187.59,187.56,2.85]
[1761204942640,4.05877631,187.59,187.56,2.85]
[1761204942843,1.25877631,187.57,187.56,2.85]
[1761204943643,1.25877631,187.57,187.53,2.85]
[1761204944352,1.25877631,187.56,187.53,2.85]
[1761204945954,2.8,187.62,187.53,2.85]
[1761204946156,20.96462158,187.68,187.53,2.85]
[1761204946157,1.25877631,187.59,187.53,2.85]
[1761204946352,1.25877631,187.57,187.53,2.85]
[1761204948357,1.25877631,187.59,187.53,2.85]
[1761204951172,4.05877631,187.57,187.53,2.85]
[1761204951463,4.05877631,187.57,187.49,2.85]
[1761204951767,1.25877631,187.56,187.49,2.85]
[1761204952166,1.25877631,187.54,187.49,2.85]
[1761204952363,4.05877631,187.54,187.49,2.85]
[1761204953270,1.25877631,187.54,187.49,2.85]
[1761204953962,4.05877631,187.54,187.49,2.85]
[1761204954162,1.25877631,187.52,187.49,2.85]
[1761204954563,4.05877631,187.52,187.49,2.85]
[1761204955869,1.25877631,187.5,187.44,2.85]
[1761204957073,1.25877631,187.49,187.44,2.85]
[1761204957872,4.05877631,187.49,187.44,2.85]
[1761204958075,1.25877631,187.47,187.41,2.85]
[1761204958471,1.25877631,187.49,187.41,2.85]
[1761204958671,1.25877631,187.49,187.42,2.91]
[1761204958875,1.25877631,187.51,187.42,2.91]
[1761204959168,1.25877631,187.49,187.42,2.91]
[1761204959377,54.96,187.56,187.42,2.91]
[1761204959378,1.25877631,187.47,187.42,2.91]
[1761204959873,2.71,187.51,187.43,2.91]
[1761204960078,3.96877631,187.51,187.43,2.91]
[1761204960375,1.25877631,187.49,187.43,2.91]
[1761204960772,2.71,187.51,187.43,2.91]
[1761204960972,1.25877631,187.49,187.43,2.91]
[1761204961169,3.96877631,187.47,187.43,2.91]
[1761204961569,1.25877631,187.45,187.43,2.91]
[1761204962381,1.25877631,187.47,187.43,2.91]
[1761204962770,2.71,187.49,187.43,2.91]
[1761204962973,1.25877631,187.48,187.43,2.91]
[1761204963477,3.96877631,187.5,187.43,2.91]
[1761204964377,3.96877631,187.48,187.43,2.91]
[1761204964674,2.71,187.47,187.43,2.91]
[1761204964878,1.25877631,187.46,187.43,2.91]
[1761204965270,2.71,187.47,187.43,2.91]
[1761204965469,3.96877631,187.47,187.43,2.91]
[1761204965668,1.25877631,187.45,187.39,2.91]
[1761204966067,75.96599887,187.57,187.32,49.88499464]
[1761204966068,1.25877631,187.43,187.32,49.88499464]
[1761204966272,75.96599887,187.57,187.28,9.96461042]
[1761204966273,1.25877631,187.42,187.33,1.25877631]
[1761204966583,1.25877631,187.4,187.34,2.91]
[1761204967880,1.25877631,187.36,187.31,64.91]
[1761204968085,3.96877631,187.38,187.32,2.91]
[1761204968582,2.71,187.38,187.32,2.91]
[1761204969180,2.71,187.38,187.29,1.25877631]
[1761204969181,1.25877631,187.36,187.28,2.91]
[1761204969376,3.96877631,187.36,187.28,2.91]
[1761204969975,3.96877631,187.36,187.29,2.91]
[1761204970879,1.25877631,187.32,187.24,2.91]
[1761204971879,1.25877631,187.3,187.24,2.91]
[1761204972079,3.96877631,187.32,187.24,2.91]
[1761204973274,2.71,187.31,187.24,2.91]
[1761204973479,1.25877631,187.33,187.24,2.91]
[1761204973683,2.71,187.35,187.29,1.25877631]
[1761204974078,2.71,187.35,187.29,4.16877631]
[1761204974680,2.71,187.35,187.29,2.91]
[1761204974988,2.71,187.35,187.29,4.16877631]
[1761204976589,2.71,187.35,187.31,1.25877631]
[1761204977392,2.71,187.35,187.29,2.91]
[1761204977594,2.71,187.35,187.3,1.25877631]
[1761204978400,2.71,187.35,187.3,4.16877631]
[1761204979091,2.71,187.35,187.31,1.25877631]
[1761204980891,2.71,187.35,187.31,4.16877631]
[1761204981088,2.71,187.38,187.31,4.16877631]
[1761204981289,2.71,187.38,187.34,2.91]
[1761204981490,2.71,187.48,187.37,4.16877631]
[1761204981688,2.71,187.48,187.4,1.25877631]
[1761204982091,2.71,187.48,187.42,1.25877631]
[1761204982891,2.71,187.48,187.4,1.25877631]
[1761204984489,2.71,187.48,187.35,62.0]
[1761204984793,2.85,187.4,187.33,1.25877631]
[1761204985098,2.85,187.38,187.31,4.15877631]
[1761204985795,2.85,187.38,187.31,2.9]
[1761204985999,2.85,187.34,187.19,2.9]
[1761204986190,2.85,187.34,187.25,2.9]
[1761204986695,2.85,187.34,187.27,2.9]
[1761204987992,2.85,187.28,187.2,2.9]
[1761204988192,1.25877631,187.27,187.2,2.9]
[1761204988693,2.67,187.27,187.14,1.97672722]
[1761204988894,2.67,187.27,187.16,2.9]
[1761204989803,4.64672722,187.25,187.16,2.9]
[1761204990799,2.67,187.25,187.16,2.9]
[1761204992797,2.67,187.32,187.18,2.9]
[1761204992992,2.67,187.32,187.2,5.30364705]
[1761204993193,2.67,187.32,187.21,2.9]
[1761205003809,2.67,187.32,187.22,2.9]
[1761205007517,2.67,187.32,187.19,8.20364705]
[1761205007717,2.67,187.32,187.19,2.9]
[1761205008014,2.67,187.32,187.16,4.8073]
[1761205008015,2.67,187.32,187.16,2.9]
[1761205008414,18.68,187.32,187.16,2.9]
[1761205008615,4.91742677,187.36,187.16,2.9]
[1761205008616,2.67,187.3,187.16,2.9]
[1761205008813,2.67,187.3,187.17,5.30364705]
[1761205009015,2.67,187.3,187.18,2.9]
[1761205010818,2.67,187.3,187.22,1.97567445]
[1761205011319,2.67,187.3,187.18,2.9]
[1761205011620,2.67,187.3,187.24,1.97567445]
[1761205012722,2.67,187.3,187.2,1.97567445]
[1761205016316,2.67,187.3,187.2,4.87567445]
[1761205016618,2.67,187.3,187.21,2.9]
[1761205018316,2.67,187.3,187.19,1.97567445]
[1761205018517,2.67,187.3,187.2,2.9]
[1761205018722,2.67,187.3,187.22,1.97567445]
[1761205018928,2.67,187.3,187.23,2.8]
[1761205021429,4.64567445,187.3,187.2,62.0]
[1761205021623,2.75,187.29,187.19,2.8]
[1761205023130,4.72567445,187.26,187.16,2.8]
[1761205023328,2.75,187.25,187.16,2.8]
[1761205025424,2.75,187.22,187.13,7.608]
[1761205025628,2.75,187.22,187.13,2.8]
[1761205028135,2.75,187.22,187.14,2.8]
[1761205028335,2.75,187.22,187.14,7.69065045]
[1761205028633,2.75,187.22,187.15,2.8]
[1761205030229,2.75,187.22,187.16,2.8]
[1761205033434,2.75,187.22,187.14,2.8]
[1761205038836,2.75,187.21,187.14,2.8]
[1761205039540,2.75,187.21,187.1,2.8]
[1761205041047,2.75,187.18,187.1,2.8]
[1761205041232,2.75,187.18,187.07,2.8]
[1761205041945,2.75,187.15,187.07,2.8]
[1761205042647,2.75,187.15,187.03,2.8]
[1761205046053,2.75,187.15,187.04,2.66]
[1761205049464,2.87,187.12,187.04,2.66]
[1761205049758,2.87,187.12,187.0,2.79]
[1761205050656,2.87,187.12,187.04,1.26692322]
[1761205050854,2.87,187.12,187.05,2.79]
[1761205051253,1.26692322,187.11,187.05,2.79]
[1761205051451,4.13692322,187.11,187.05,2.79]
[1761205051860,2.87,187.1,187.05,2.79]
[1761205054259,2.87,187.08,187.0,2.79]
[1761205054558,2.87,187.06,187.0,2.79]
[1761205056864,4.13692322,187.05,186.97,2.79]
[1761205057161,4.13692322,187.03,186.97,2.79]
[1761205057357,2.87,187.02,186.97,2.79]
[1761205059859,2.87,187.02,186.94,2.79]
[1761205063566,2.87,187.12,186.96,2.79]
[1761205063772,10.0992344,187.2,186.98,2.79]
[1761205063773,1.26692322,187.05,186.98,2.79]
[1761205063976,2.87,187.07,187.0,2.79]
[1761205064163,4.13692322,187.09,187.0,2.79]
[1761205065073,4.13692322,187.09,187.01,2.79]
[1761205065268,2.87,187.09,187.03,2.79]
[1761205065872,18.14,187.15,187.03,2.79]
[1761205065873,2.87,187.12,187.04,2.79]
[1761205068072,2.87,187.1,187.04,2.79]
[1761205068279,1.26692322,187.11,186.91,9.6273]
[1761205068280,4.13692322,187.09,187.01,2.79]
[1761205069168,2.87,187.08,187.01,2.79]
[1761205069372,2.87,187.06,186.98,4.05692322]
[1761205069566,2.87,187.06,186.99,2.79]
[1761205069876,1.26692322,187.07,186.99,2.79]
[1761205071476,1.26692322,187.07,187.0,1.26692322]
[1761205071674,4.13692322,187.09,187.01,2.79]
[1761205072072,2.87,187.08,187.01,2.79]
[1761205074079,2.87,187.06,187.01,2.79]
[1761205076583,4.13692322,187.05,186.97,2.79]
[1761205077783,1.26692322,187.05,186.97,2.79]
[1761205077983,2.87,187.04,186.97,2.79]
[1761205079382,3.97692322,187.03,186.97,2.79]
[1761205079679,2.71,187.02,186.97,2.79]
[1761205080478,3.97692322,187.01,186.94,2.75]
[1761205080889,2.71,187.0,186.94,2.75]
[1761205083988,2.71,187.07,186.94,2.75]
[1761205084175,1.26692322,187.02,186.94,2.75]
[1761205084378,3.97692322,187.03,186.96,2.75]
[1761205084579,2.71,187.02,186.96,2.75]
[1761205085985,2.71,187.05,186.96,2.75]
[1761205086185,3.97692322,187.04,186.96,2.75]
[1761205087281,3.97692322,187.02,186.96,2.75]
[1761205087978,2.71,186.99,186.93,2.75]
[1761205088485,2.71,186.97,186.89,2.75]
[1761205088787,2.71,186.97,186.88,4.94642538]
[1761205088788,2.71,186.97,186.91,2.75]
[1761205090192,1.26692322,186.96,186.91,2.75]
[1761205090388,2.71,186.95,186.91,2.75]
[1761205091191,2.71,186.95,186.87,1.26692322]
[1761205091192,2.71,186.93,186.87,2.75]
[1761205091387,1.26692322,186.92,186.84,2.75]
[1761205091690,1.26692322,186.9,186.84,2.75]
[1761205092390,3.97692322,186.9,186.84,2.75]
[1761205093287,16.01,186.97,186.84,2.75]
[1761205093486,3.97692322,186.96,186.88,2.75]
[1761205093689,2.71,186.96,186.88,2.75]
[1761205094296,4.8132,186.93,186.89,2.75]
[1761205095589,2.71,186.96,186.89,2.75]
[1761205097197,4.8129,186.95,186.89,2.75]
[1761205097386,4.8129,186.95,186.82,6.62357283]
[1761205097387,2.71,187.0,186.92,1.26692322]
[1761205097587,4.812,186.98,186.93,2.75]
[1761205097792,3.97692322,187.03,186.95,2.75]
[1761205098193,2.71,187.03,186.96,1.26692322]
[1761205098384,2.71,187.03,186.97,2.75]
[1761205098385,4.8108,187.03,186.97,2.75]
[1761205098589,4.8108,187.03,186.99,2.75]
[1761205099599,2.71,187.05,186.99,2.75]
[1761205100694,0.15838,187.1,187.0,1.06]
[1761205100992,3.97692322,187.15,187.07,4.01692322]
[1761205101193,2.71,187.15,187.09,1.26692322]
[1761205101397,2.71,187.19,187.12,1.26692322]
[1761205101596,2.71,187.19,187.1,2.75]
[1761205101793,1.26692322,187.18,187.1,2.75]
[1761205101997,2.71,187.17,187.1,2.75]
[1761205102987,4.8076,187.15,187.1,4.01692322]
[1761205103187,4.8076,187.15,187.11,2.75]
[1761205103903,4.8076,187.15,187.12,1.26692322]
[1761205104094,4.8076,187.15,187.12,4.01692322]
[1761205104599,2.73,187.14,187.1,1.26692322]
[1761205105702,2.73,187.14,187.08,4.07692322]
[1761205105893,2.73,187.13,187.06,1.26692322]
[1761205107098,2.73,187.13,187.04,2.81]
[1761205107290,2.73,187.13,187.06,1.26692322]
[1761205108299,3.99692322,187.13,187.06,1.26692322]
[1761205108489,2.83,187.1,187.04,1.26692322]
[1761205108694,2.83,187.08,187.02,1.26692322]
[1761205109306,1.26692322,187.05,186.95,2.76]
[1761205109599,1.26692322,187.05,186.96,2.76]
[1761205110707,2.83,187.05,186.96,2.76]
[1761205114806,2.83,187.05,186.91,2.76]
[1761205119212,2.83,187.04,186.91,2.76]
[1761205119414,2.83,187.02,186.91,2.76]
[1761205120010,2.83,187.01,186.91,2.76]
[1761205129417,2.83,187.0,186.91,2.76]
[1761205131816,1.98251005,186.99,186.91,2.76]
[1761205132020,2.83,186.98,186.91,2.76]
[1761205134524,1.98251005,186.96,186.86,2.76]
[1761205134824,2.83,186.95,186.86,2.76]
[1761205147430,41.01,187.0,186.86,2.76]
[1761205147637,2.76,186.99,186.86,2.76]
[1761205149427,1.98251005,186.99,186.86,2.76]
[1761205149632,2.76,186.98,186.86,2.76]
[1761205150534,2.76,186.98,186.87,2.76]
[1761205151446,2.76,186.98,186.88,2.76]
[1761205154937,1.98251005,186.98,186.88,2.76]
[1761205155242,2.76,186.97,186.88,2.76]
[1761205156348,2.76,186.97,186.89,2.76]
[1761205159843,1.98251005,186.98,186.89,2.76]
[1761205160144,29.74251005,187.0,186.91,2.76]
[1761205161248,2.76,186.99,186.91,2.76]
[1761205164048,2.76,186.96,186.91,2.76]
[1761205168049,2.87,186.95,186.91,2.76]
[1761205169246,2.87,186.95,186.89,4.94642538]
[1761205169445,2.87,186.95,186.88,7.77642538]
[1761205169647,2.86,186.92,186.88,2.83]
[1761205170653,2.86,186.92,186.87,7.77642538]
[1761205170842,2.86,186.92,186.88,2.83]
[1761205172851,4.12970756,186.92,186.88,2.83]
[1761205173554,1.26970756,186.93,186.88,2.83]
[1761205173760,1.26970756,186.93,186.89,2.83]
[1761205175156,46.24970756,186.95,186.89,2.83]
[1761205175650,46.24970756,186.95,186.9,2.83]
[1761205175848,49.10970756,186.95,186.9,2.83]
[1761205176956,4.12970756,186.93,186.9,2.83]
[1761205177148,44.98,186.95,186.9,2.83]
[1761205177149,46.24970756,186.95,186.9,2.83]
[1761205177353,49.10970756,186.95,186.9,2.83]
[1761205177955,47.84,186.95,186.9,2.83]
[1761205179950,44.98,186.95,186.91,2.83]
[1761205182766,2.86,186.95,186.91,2.83]
[1761205183364,44.96,186.98,186.91,9.04613294]
[1761205183567,44.96,186.98,186.94,2.83]
[1761205184057,47.82,186.98,186.94,2.83]
[1761205184263,2.86,186.97,186.92,7.77642538]
[1761205184656,2.86,186.97,186.93,2.83]
[1761205185357,47.82,186.98,186.93,2.83]
[1761205186465,44.96,186.98,186.93,2.83]
[1761205186666,44.96,186.98,186.94,2.83]
[1761205187170,1.26970756,186.99,186.94,2.83]
[1761205187767,4.12970756,186.99,186.94,2.83]
[1761205192279,2.86,186.98,186.94,2.83]
[1761205195875,1.26970756,186.99,186.94,2.83]
[1761205196270,4.12970756,186.99,186.94,2.83]
[1761205196873,2.86,186.99,186.94,2.83]
[1761205197070,25.0,187.0,186.94,2.83]
[1761205198886,27.66,187.0,186.94,2.83]
[1761205199083,1.26970756,186.99,186.94,2.83]
[1761205199289,3.92970756,186.99,186.94,2.83]
[1761205200182,2.66,186.98,186.94,2.83]
[1761205200383,3.92970756,186.97,186.93,2.9]
[1761205200772,1.26970756,186.97,186.93,2.9]
[1761205201180,1.26970756,186.97,186.94,2.9]
[1761205201983,3.92970756,186.99,186.94,2.9]
[1761205202284,1.26970756,186.99,186.94,2.9]
[1761205202476,25.0,187.0,186.95,2.9]
[1761205202873,27.66,187.0,186.95,2.9]
[1761205203079,1.26970756,186.99,186.95,2.9]
[1761205203687,3.92970756,186.99,186.95,2.9]
[1761205205582,1.26970756,186.99,186.95,2.9]
[1761205206384,25.0,187.0,186.96,2.9]
[1761205206684,25.0,187.0,186.97,2.9]
[1761205206873,25.0,187.0,186.98,2.9]
[1761205207479,25.0,187.0,186.99,2.9]
[1761205207680,16.43081701,187.0,186.99,3.96]
[1761205207984,1.26970756,187.11,186.99,8.95328039]
[1761205208179,1.26970756,187.11,187.03,1.26970756]
[1761205208681,1.26970756,187.11,187.05,4.8101]
[1761205209384,1.26970756,187.13,187.05,6.07980756]
[1761205209887,2.66,187.14,187.05,6.07980756]
[1761205210190,12.02970756,187.16,187.07,1.26970756]
[1761205210382,1.26970756,187.16,187.09,1.26970756]
[1761205210885,2.66,187.17,187.09,1.26970756]
[1761205211789,2.66,187.17,187.08,4.8095]
[1761205211984,3.92970756,187.16,187.08,6.07920756]
[1761205212183,1.26970756,187.19,187.1,6.07870756]
[1761205212386,2.66,187.2,187.14,1.26970756]
[1761205212686,3.92970756,187.24,187.16,1.26970756]
[1761205213481,2.66,187.21,187.11,4.8086]
[1761205213686,2.66,187.21,187.14,1.26970756]
[1761205214489,1.26970756,187.22,187.14,1.26970756]
[1761205214689,1.26970756,187.24,187.16,1.26970756]
[1761205214987,2.66,187.23,187.16,1.26970756]
[1761205215186,2.66,187.23,187.18,1.26970756]
[1761205215381,2.66,187.23,187.16,1.26970756]
[1761205215786,2.66,187.23,187.15,1.26970756]
[1761205216290,3.92970756,187.23,187.15,1.26970756]
[1761205217084,1.26970756,187.23,187.1,66.8088]
[1761205217290,2.66,187.2,187.1,4.8088]
[1761205217484,2.66,187.2,187.13,1.26970756]
[1761205218297,2.66,187.2,187.12,4.8085]
[1761205218495,2.66,187.2,187.14,1.26970756]
[1761205222302,2.66,187.16,187.1,1.26970756]
[1761205223201,1.26970756,187.19,187.12,1.26970756]
[1761205223396,3.92970756,187.19,187.12,1.26970756]
[1761205223800,2.66,187.19,187.12,1.26970756]
[1761205224005,3.92970756,187.19,187.12,1.26970756]
[1761205224197,2.66,187.19,187.12,1.26970756]
[1761205224402,3.92970756,187.19,187.12,1.26970756]
[1761205224598,2.91,187.18,187.1,4.8088]
[1761205224797,2.91,187.18,187.11,1.26970756]